fUST/lending_fUST_20250701
["ID","MTS","AMOUNT","RATE_DAILY","PERIOD"]
[368849301,1751376651877,-500.0,0.00018773,2]
[368849303,1751376651889,-500.0,0.00018773,2]
[368849305,1751376651899,-500.0,0.00018773,2]
[368849307,1751376651910,-500.0,0.00018773,2]
[368849309,1751376651921,-500.0,0.00018773,2]
[368849311,1751376651934,-500.0,0.00018773,2]
[368849313,1751376651944,-500.0,0.00018773,2]
[368849314,1751376651955,-500.0,0.00018773,2]
[368849317,1751376651966,-500.0,0.00018773,2]
[368849319,1751376651976,-433.85173513,0.00018773,2]
[368849321,1751376651987,-500.0,0.00018773,2]
[368849323,1751376651997,-500.0,0.00018773,2]
[368849325,1751376652008,-500.0,0.00018773,2]
[368849327,1751376652022,-500.0,0.00018773,2]
[368849328,1751376652034,-500.0,0.00018773,2]
[368849331,1751376652044,-500.0,0.00018773,2]
[368849333,1751376652054,-500.35336161,0.00018773,2]
[368849335,1751376652065,-500.0,0.00018773,2]
[368849337,1751376652075,-500.0,0.00018773,2]
[368849339,1751376652085,-500.0,0.00018773,2]
[368849341,1751376652096,-6863.63929148,0.000188,2]
[368849343,1751376652106,-6863.63929137,0.000188,2]
[368849345,1751376652115,-6863.63929137,0.000188,2]
[368849347,1751376652125,-6863.63929137,0.000188,2]
[368849349,1751376652135,-690.642,0.0001882,2]
[368849351,1751376652144,-151.0,0.0001882,2]
[368849353,1751376652154,-151.0,0.0001882,2]
[368849354,1751376652163,-151.0,0.0001882,2]
[368849356,1751376652173,-500.0,0.0001882,2]
[368849358,1751376652183,-500.0,0.0001882,2]
[368849360,1751376652192,-207.4,0.0001882,2]
[368849362,1751376652201,-500.0,0.0001882,2]
[368849364,1751376652211,-500.0,0.0001882,2]
[368849366,1751376652221,-500.0,0.0001882,2]
[368849369,1751376652231,-500.0,0.0001882,2]
[368849371,1751376652240,-500.0,0.0001882,2]
[368849373,1751376652250,-5000.0,0.0001882,2]
[368849375,1751376652262,-500.0,0.0001882,2]
[368849377,1751376652277,-500.0,0.0001882,2]
[368849379,1751376652288,-500.0,0.0001882,2]
[368849381,1751376652298,-500.0,0.0001882,2]
[368849383,1751376652308,-500.0,0.0001882,2]
[368849385,1751376652318,-500.0,0.0001882,2]
[368849387,1751376652328,-500.0,0.0001882,2]
[368849389,1751376652338,-500.0,0.0001882,2]
[368849391,1751376652349,-500.0,0.0001882,2]
[368849393,1751376652359,-500.0,0.0001882,2]
[368849395,1751376652369,-500.0,0.0001882,2]
[368849397,1751376652379,-500.0,0.0001882,2]
[368849399,1751376652389,-500.0,0.0001882,2]
[368849401,1751376652399,-500.0,0.0001882,2]
[368849403,1751376652411,-500.0,0.0001882,2]
[368849405,1751376652421,-500.0,0.0001882,2]
[368849407,1751376652431,-500.0,0.0001882,2]
[368849409,1751376652442,-500.0,0.0001882,2]
[368849411,1751376652452,-500.0,0.0001882,2]
[368849413,1751376652463,-500.0,0.0001882,2]
[368849415,1751376652473,-500.0,0.0001882,2]
[368849418,1751376652483,-500.0,0.0001882,2]
[368849420,1751376652493,-500.0,0.0001882,2]
[368849422,1751376652503,-25000.0,0.0001882,2]
[368849424,1751376652515,-8792.80026203,0.0001882,2]
[368849425,1751376652528,-480.0,0.00018855,2]
[368849427,1751376652538,-420.0,0.00018855,2]
[368849430,1751376652549,-716.195754,0.00018875,2]
[368849431,1751376652559,-1364.33526572,0.000189,2]
[368849433,1751376652569,-460.0,0.00018913,2]
[368849435,1751376652580,-460.0,0.00018913,2]
[368849437,1751376652591,-460.0,0.00018913,2]
[368849439,1751376652602,-524.13,0.00018913,2]
[368849442,1751376652613,-3650.08,0.00018913,2]
[368849444,1751376652624,-460.0,0.00018913,2]
[368849445,1751376652635,-787.8,0.00018913,2]
[368849447,1751376652646,-460.0,0.00018913,2]
[368849450,1751376652657,-460.0,0.00018913,2]
[368849452,1751376652669,-460.0,0.00018913,2]
[368849454,1751376652680,-1272.84,0.00018913,2]
[368849456,1751376652690,-460.0,0.00018913,2]
[368849457,1751376652701,-2622.27,0.00018913,2]
[368849459,1751376652712,-4856.27,0.00018913,2]
[368849461,1751376652724,-460.0,0.00018913,2]
[368849464,1751376652736,-460.0,0.00018913,2]
[368849466,1751376652747,-1670.35,0.00018913,2]
[368849468,1751376652758,-460.0,0.00018913,2]
[368849470,1751376652772,-460.0,0.00018913,2]
[368849472,1751376652785,-460.0,0.00018913,2]
[368849474,1751376652799,-460.0,0.00018913,2]
[368849476,1751376652809,-460.0,0.00018913,2]
[368849478,1751376652819,-632.08,0.00018913,2]
[368849480,1751376652833,-460.0,0.00018913,2]
[368849482,1751376652843,-460.0,0.00018913,2]
[368849484,1751376652854,-460.0,0.00018913,2]
[368849486,1751376652866,-2487.2,0.00018913,2]
[368849488,1751376652877,-2089.93,0.00018913,2]
[368849490,1751376652887,-460.0,0.00018913,2]
[368849492,1751376652898,-460.0,0.00018913,2]
[368849494,1751376652908,-460.0,0.00018913,2]
[368849496,1751376652918,-1083.66,0.00018913,2]
[368849498,1751376652929,-460.0,0.00018913,2]
[368849500,1751376652939,-2999.72,0.00018913,2]
[368849511,1751376653041,-460.0,0.00018915,2]
[368849514,1751376653065,-2053.17,0.00018915,2]
[368849516,1751376653076,-1092.8,0.00018915,2]
[368849518,1751376653085,-1591.45,0.00018915,2]
[368849520,1751376653096,-742.6949969,0.0001893,2]
[368849522,1751376653105,-770.17471178,0.00018985,2]
[368849524,1751376653115,-9088.43575008,0.00019,2]
[368849526,1751376653125,-6863.63929137,0.00019003,2]
[368849528,1751376653136,-460.0,0.0001901,2]
[368849530,1751376653146,-460.0,0.0001901,2]
[368849532,1751376653156,-460.0,0.0001901,2]
[368849534,1751376653166,-557.77431141,0.0001901,2]
[368849536,1751376653177,-460.0,0.0001901,2]
[368849538,1751376653186,-460.0,0.0001901,2]
[368849540,1751376653196,-460.0,0.0001901,2]
[368849542,1751376653205,-460.0,0.0001901,2]
[368849544,1751376653215,-460.0,0.0001901,2]
[368849546,1751376653225,-460.0,0.0001901,2]
[368849548,1751376653235,-629.01,0.0001901,2]
[368849550,1751376653245,-460.0,0.0001901,2]
[368849552,1751376653255,-460.0,0.0001901,2]
[368849554,1751376653265,-460.0,0.0001901,2]
[368849556,1751376653277,-460.0,0.0001901,2]
[368849558,1751376653287,-460.0,0.0001901,2]
[368849560,1751376653297,-460.0,0.0001901,2]
[368849562,1751376653307,-460.0,0.0001901,2]
[368849564,1751376653316,-460.0,0.0001901,2]
[368849566,1751376653326,-460.0,0.0001901,2]
[368849568,1751376653337,-460.0,0.0001901,2]
[368849570,1751376653346,-460.0,0.0001901,2]
[368849572,1751376653355,-642.37,0.0001901,2]
[368849574,1751376653364,-460.0,0.0001901,2]
[368849576,1751376653374,-474.1,0.0001901,2]
[368849578,1751376653383,-474.54,0.0001901,2]
[368849580,1751376653393,-460.0,0.0001901,2]
[368849582,1751376653403,-1394.04,0.0001901,2]
[368849584,1751376653412,-460.0,0.0001901,2]
[368849586,1751376653422,-460.0,0.0001901,2]
[368849589,1751376653432,-603.08,0.0001901,2]
[368849591,1751376653442,-1256.82,0.0001901,2]
[368849593,1751376653452,-857.59,0.0001901,2]
[368849595,1751376653461,-460.0,0.0001901,2]
[368849597,1751376653471,-460.0,0.0001901,2]
[368849599,1751376653480,-460.0,0.0001901,2]
[368849601,1751376653490,-540.67,0.0001901,2]
[368849603,1751376653500,-460.0,0.0001901,2]
[368849605,1751376653510,-1100.95,0.0001901,2]
[368849606,1751376653520,-703.62,0.0001901,2]
[368849608,1751376653530,-460.0,0.0001901,2]
[368849610,1751376653541,-513.66,0.0001901,2]
[368849613,1751376653551,-653.48,0.0001901,2]
[368849615,1751376653561,-495.49,0.0001901,2]
[368849617,1751376653570,-678.27,0.0001901,2]
[368849619,1751376653580,-460.0,0.0001901,2]
[368849621,1751376653590,-460.0,0.00019011,2]
[368849622,1751376653599,-460.0,0.00019011,2]
[368849624,1751376653609,-460.0,0.00019011,2]
[368849626,1751376653619,-460.0,0.00019011,2]
[368849628,1751376653629,-823.93,0.00019011,2]
[368849630,1751376653639,-460.0,0.00019011,2]
[368849632,1751376653650,-460.0,0.00019011,2]
[368849634,1751376653660,-460.0,0.00019011,2]
[368849636,1751376653671,-460.0,0.00019011,2]
[368849638,1751376653682,-695.91,0.00019011,2]
[368849640,1751376653692,-460.0,0.00019011,2]
[368849642,1751376653703,-460.0,0.00019011,2]
[368849644,1751376653713,-460.0,0.00019011,2]
[368849646,1751376653724,-460.0,0.00019011,2]
[368849648,1751376653734,-460.0,0.00019011,2]
[368849650,1751376653744,-460.0,0.00019011,2]
[368849652,1751376653754,-264.68,0.00019011,2]
[368849655,1751376653765,-979.38,0.00019011,2]
[368849656,1751376653776,-460.0,0.00019011,2]
[368849658,1751376653790,-460.0,0.00019011,2]
[368849660,1751376653800,-460.0,0.00019011,2]
[368849662,1751376653809,-460.0,0.00019011,2]
[368849665,1751376653818,-460.0,0.00019011,2]
[368849666,1751376653830,-460.0,0.00019011,2]
[368849668,1751376653843,-460.0,0.00019011,2]
[368849670,1751376653852,-460.0,0.00019011,2]
[368849673,1751376653865,-460.0,0.00019013,2]
[368849675,1751376653875,-460.0,0.00019013,2]
[368849677,1751376653884,-460.0,0.00019013,2]
[368849679,1751376653894,-460.0,0.00019013,2]
[368849681,1751376653902,-1129.1,0.00019013,2]
[368849683,1751376653911,-460.0,0.00019013,2]
[368849685,1751376653921,-460.0,0.00019013,2]
[368849687,1751376653930,-460.0,0.00019013,2]
[368849689,1751376653940,-161.84492213,0.00019013,2]
[368849691,1751376653950,-460.0,0.00019013,2]
[368849693,1751376653959,-460.0,0.00019013,2]
[368849695,1751376653969,-460.0,0.00019013,2]
[368849697,1751376653978,-460.0,0.00019013,2]
[368849698,1751376653988,-460.0,0.00019013,2]
[368849701,1751376653998,-460.0,0.00019013,2]
[368849703,1751376654009,-460.0,0.00019013,2]
[368849705,1751376654019,-704.77,0.00019013,2]
[368849707,1751376654030,-460.0,0.00019013,2]
[368849709,1751376654039,-460.0,0.00019013,2]
[368849711,1751376654049,-768.12,0.00019013,2]
[368849713,1751376654059,-5015.81,0.00019013,2]
[368849715,1751376654068,-460.0,0.00019013,2]
[368849717,1751376654077,-737.94,0.00019013,2]
[368849719,1751376654087,-1161.05,0.00019013,2]
[368849721,1751376654097,-651.54,0.00019013,2]
[368849723,1751376654106,-460.0,0.00019013,2]
[368849725,1751376654116,-2469.46,0.00019013,2]
[368849727,1751376654125,-1448.72,0.00019013,2]
[368849729,1751376654134,-460.0,0.00019013,2]
[368849731,1751376654143,-460.0,0.00019013,2]
[368849733,1751376654153,-500.0,0.00019013,2]
[368849735,1751376654162,-460.0,0.00019014,2]
[368849737,1751376654171,-460.0,0.00019014,2]
[368849739,1751376654181,-460.0,0.00019014,2]
[368849741,1751376654190,-460.0,0.00019014,2]
[368849743,1751376654200,-3553.77,0.00019014,2]
[368849745,1751376654209,-460.0,0.00019014,2]
[368849747,1751376654219,-1753.82,0.00019014,2]
[368849749,1751376654230,-5531.74,0.00019014,2]
[368849751,1751376654239,-1794.4,0.00019014,2]
[368849753,1751376654248,-460.0,0.00019014,2]
[368849755,1751376654258,-219.41683556,0.00019015,2]
[368849757,1751376654267,-460.0,0.00019015,2]
[368849759,1751376654277,-460.0,0.00019015,2]
[368849760,1751376654286,-460.0,0.00019016,2]
[368849763,1751376654295,-460.0,0.00019016,2]
[368849765,1751376654304,-460.0,0.00019016,2]
[368849766,1751376654314,-460.0,0.00019016,2]
[368849769,1751376654323,-460.0,0.00019016,2]
[368849771,1751376654333,-460.0,0.00019016,2]
[368849773,1751376654342,-460.0,0.00019016,2]
[368849775,1751376654354,-460.0,0.00019016,2]
[368849777,1751376654363,-460.0,0.00019016,2]
[368849779,1751376654373,-460.0,0.00019016,2]
[368849781,1751376654383,-460.0,0.00019016,2]
[368849783,1751376654392,-460.0,0.00019016,2]
[368849785,1751376654402,-422.94073516,0.00019016,2]
[368849787,1751376654411,-798.67117612,0.0001904,2]
[368849789,1751376654421,-1500.0,0.00019068,2]
[368849791,1751376654430,-1500.0,0.00019068,2]
[368849793,1751376654440,-1500.0,0.00019068,2]
[368849795,1751376654450,-1500.0,0.00019068,2]
[368849797,1751376654460,-1500.0,0.00019068,2]
[368849799,1751376654469,-1500.0,0.00019068,2]
[368849801,1751376654478,-1500.0,0.00019068,2]
[368849803,1751376654488,-828.22200964,0.00019095,2]
[368849805,1751376654497,-500.0,0.00019109,2]
[368849807,1751376654507,-858.86622399,0.0001915,2]
[368849809,1751376654516,-2552.4879549,0.00019178,2]
[368849811,1751376654526,-394.053212,0.00019178,2]
[368849813,1751376654536,-169.01978538,0.00019185,2]
[368849815,1751376654545,-460.0,0.00019187,2]
[368849817,1751376654557,-484.02351621,0.00019187,2]
[368849820,1751376654568,-460.0,0.00019187,2]
[368849822,1751376654577,-524.13,0.00019187,2]
[368849824,1751376654587,-3650.08,0.00019187,2]
[368849826,1751376654598,-460.0,0.00019187,2]
[368849828,1751376654607,-787.8,0.00019187,2]
[368849830,1751376654617,-460.0,0.00019187,2]
[368849842,1751376654721,-460.0,0.00019187,2]
[368849844,1751376654731,-460.0,0.00019187,2]
[368849846,1751376654741,-1272.84,0.00019187,2]
[368849848,1751376654751,-460.0,0.00019187,2]
[368849850,1751376654761,-2622.27,0.00019187,2]
[368849852,1751376654771,-4856.27,0.00019187,2]
[368849854,1751376654781,-179.08,0.00019187,2]
[368849856,1751376654794,-460.0,0.00019187,2]
[368849858,1751376654803,-1670.35,0.00019187,2]
[368849860,1751376654813,-460.0,0.00019187,2]
[368849862,1751376654823,-460.0,0.00019187,2]
[368849863,1751376654833,-460.0,0.00019187,2]
[368849866,1751376654843,-460.0,0.00019187,2]
[368849867,1751376654852,-460.0,0.00019187,2]
[368849869,1751376654864,-632.08,0.00019187,2]
[368849872,1751376654874,-460.0,0.00019187,2]
[368849873,1751376654884,-460.0,0.00019187,2]
[368849876,1751376654894,-460.0,0.00019187,2]
[368849878,1751376654904,-2487.2,0.00019187,2]
[368849880,1751376654914,-2089.93,0.00019187,2]
[368849882,1751376654925,-460.0,0.00019187,2]
[368849884,1751376654935,-460.0,0.00019187,2]
[368849886,1751376654945,-460.0,0.00019187,2]
[368849888,1751376654955,-1083.66,0.00019187,2]
[368849890,1751376654964,-417.47075612,0.00019187,2]
[368849892,1751376654974,-2999.72,0.00019187,2]
[368849894,1751376654983,-460.0,0.00019189,2]
[368849896,1751376654993,-2053.17,0.00019189,2]
[368849898,1751376655003,-1092.8,0.00019189,2]
[368849900,1751376655012,-1591.45,0.00019189,2]
[368849902,1751376655025,-890.64427428,0.00019205,2]
[368849904,1751376655036,-923.59811243,0.0001926,2]
[368849906,1751376655046,-6863.63929137,0.00019279,2]
[368849908,1751376655055,-460.0,0.00019284,2]
[368849910,1751376655065,-460.0,0.00019284,2]
[368849912,1751376655074,-558.56833172,0.00019284,2]
[368849915,1751376655084,-460.0,0.00019284,2]
[368849917,1751376655093,-460.0,0.00019284,2]
[368849919,1751376655103,-460.0,0.00019284,2]
[368849921,1751376655113,-460.0,0.00019284,2]
[368849923,1751376655122,-460.0,0.00019284,2]
[368849925,1751376655131,-460.0,0.00019284,2]
[368849926,1751376655140,-629.01,0.00019284,2]
[368849928,1751376655149,-460.0,0.00019284,2]
[368849931,1751376655159,-460.0,0.00019284,2]
[368849933,1751376655168,-460.0,0.00019284,2]
[368849935,1751376655178,-460.0,0.00019284,2]
[368849937,1751376655189,-460.0,0.00019284,2]
[368849939,1751376655198,-460.0,0.00019284,2]
[368849941,1751376655207,-460.0,0.00019284,2]
[368849943,1751376655216,-460.0,0.00019284,2]
[368849945,1751376655226,-460.0,0.00019284,2]
[368849947,1751376655235,-460.0,0.00019284,2]
[368849949,1751376655244,-460.0,0.00019284,2]
[368849951,1751376655253,-642.37,0.00019284,2]
[368849953,1751376655262,-460.0,0.00019284,2]
[368849955,1751376655272,-474.1,0.00019284,2]
[368849957,1751376655281,-474.54,0.00019284,2]
[368849959,1751376655291,-460.0,0.00019284,2]
[368849961,1751376655300,-1394.04,0.00019284,2]
[368849963,1751376655309,-460.0,0.00019284,2]
[368849965,1751376655319,-460.0,0.00019284,2]
[368849967,1751376655329,-603.08,0.00019284,2]
[368849969,1751376655339,-1256.82,0.00019284,2]
[368849971,1751376655348,-857.59,0.00019284,2]
[368849973,1751376655359,-460.0,0.00019284,2]
[368849975,1751376655369,-460.0,0.00019284,2]
[368849977,1751376655379,-460.0,0.00019284,2]
[368849979,1751376655388,-540.67,0.00019284,2]
[368849981,1751376655398,-460.0,0.00019284,2]
[368849983,1751376655408,-1100.95,0.00019284,2]
[368849985,1751376655417,-703.62,0.00019284,2]
[368849987,1751376655427,-460.0,0.00019284,2]
[368849989,1751376655436,-513.66,0.00019284,2]
[368849991,1751376655446,-653.48,0.00019284,2]
[368849993,1751376655455,-495.49,0.00019284,2]
[368849995,1751376655464,-678.27,0.00019284,2]
[368849997,1751376655473,-460.0,0.00019284,2]
[368849999,1751376655483,-460.0,0.00019285,2]
[368850000,1751376655492,-460.0,0.00019285,2]
[368850001,1751376655501,-460.0,0.00019285,2]
[368850002,1751376655511,-823.93,0.00019285,2]
[368850003,1751376655521,-460.0,0.00019285,2]
[368850004,1751376655531,-460.0,0.00019285,2]
[368850005,1751376655541,-460.0,0.00019285,2]
[368850006,1751376655550,-460.0,0.00019285,2]
[368850007,1751376655560,-695.91,0.00019285,2]
[368850008,1751376655570,-460.0,0.00019285,2]
[368850009,1751376655579,-460.0,0.00019285,2]
[368850010,1751376655588,-460.0,0.00019285,2]
[368850011,1751376655598,-460.0,0.00019285,2]
[368850012,1751376655607,-460.0,0.00019285,2]
[368850014,1751376655617,-460.0,0.00019285,2]
[368850016,1751376655626,-979.38,0.00019285,2]
[368850018,1751376655636,-460.0,0.00019285,2]
[368850020,1751376655646,-182.70126732,0.00019285,2]
[368850022,1751376655655,-460.0,0.00019285,2]
[368850024,1751376655664,-460.0,0.00019285,2]
[368850026,1751376655674,-460.0,0.00019285,2]
[368850028,1751376655684,-460.0,0.00019285,2]
[368850030,1751376655694,-460.0,0.00019285,2]
[368850032,1751376655703,-460.0,0.00019285,2]
[368850034,1751376655713,-460.0,0.00019287,2]
[368850036,1751376655722,-460.0,0.00019287,2]
[368850038,1751376655731,-460.0,0.00019287,2]
[368850040,1751376655741,-1129.1,0.00019287,2]
[368850042,1751376655750,-460.0,0.00019287,2]
[368850044,1751376655759,-460.0,0.00019287,2]
[368850046,1751376655768,-460.0,0.00019287,2]
[368850048,1751376655778,-460.0,0.00019287,2]
[368850050,1751376655792,-460.0,0.00019287,2]
[368850052,1751376655801,-460.0,0.00019287,2]
[368850054,1751376655811,-460.0,0.00019287,2]
[368850056,1751376655820,-460.0,0.00019287,2]
[368850058,1751376655830,-460.0,0.00019287,2]
[368850060,1751376655840,-704.77,0.00019287,2]
[368850062,1751376655850,-460.0,0.00019287,2]
[368850064,1751376655859,-460.0,0.00019287,2]
[368850066,1751376655872,-768.12,0.00019287,2]
[368850068,1751376655881,-5015.81,0.00019287,2]
[368850070,1751376655890,-460.0,0.00019287,2]
[368850072,1751376655900,-737.94,0.00019287,2]
[368850074,1751376655910,-1161.05,0.00019287,2]
[368850076,1751376655919,-651.54,0.00019287,2]
[368850078,1751376655928,-460.0,0.00019287,2]
[368850080,1751376655938,-2469.46,0.00019287,2]
[368850082,1751376655949,-1448.72,0.00019287,2]
[368850084,1751376655959,-460.0,0.00019287,2]
[368850086,1751376655968,-460.0,0.00019287,2]
[368850088,1751376655979,-460.0,0.00019288,2]
[368850090,1751376655989,-522.92991043,0.00019288,2]
[368850092,1751376655998,-460.0,0.00019288,2]
[368850094,1751376656008,-460.0,0.00019288,2]
[368850096,1751376656018,-3553.77,0.00019288,2]
[368850098,1751376656029,-460.0,0.00019288,2]
[368850100,1751376656039,-1753.82,0.00019288,2]
[368850102,1751376656049,-5531.74,0.00019288,2]
[368850104,1751376656058,-1794.4,0.00019288,2]
[368850106,1751376656067,-174.3170499,0.00019289,2]
[368850108,1751376656077,-460.0,0.00019289,2]
[368850110,1751376656087,-460.0,0.0001929,2]
[368850112,1751376656096,-460.0,0.0001929,2]
[368850114,1751376656106,-460.0,0.0001929,2]
[368850116,1751376656115,-460.0,0.0001929,2]
[368850118,1751376656125,-460.0,0.0001929,2]
[368850120,1751376656135,-542.83991,0.0001929,2]
[368850132,1751376656237,-460.0,0.0001929,2]
[368850134,1751376656247,-460.0,0.0001929,2]
[368850136,1751376656256,-276.06298717,0.0001929,2]
[368850138,1751376656266,-405.4901882,0.0001929,2]
[368850139,1751376656276,-460.0,0.0001929,2]
[368850141,1751376656286,-460.0,0.0001929,2]
[368850143,1751376656295,-957.77124259,0.00019315,2]
[368850145,1751376656305,-2000.0,0.00019316,2]
[368850147,1751376656315,-2000.0,0.00019316,2]
[368850150,1751376656325,-250.0,0.00019321,2]
[368850151,1751376656334,-1000.0,0.00019321,2]
[368850153,1751376656343,-500.0,0.00019321,2]
[368850155,1751376656353,-1000.0,0.00019321,2]
[368850157,1751376656362,-1000.0,0.00019321,2]
[368850159,1751376656371,-1000.0,0.00019321,2]
[368850161,1751376656380,-1200.0,0.00019321,2]
[368850163,1751376656390,-1000.0,0.00019321,2]
[368850165,1751376656399,-1000.0,0.00019321,2]
[368850167,1751376656409,-1000.0,0.00019321,2]
[368850169,1751376656419,-1000.0,0.00019321,2]
[368850171,1751376656429,-1000.0,0.00019321,2]
[368850173,1751376656438,-1000.0,0.00019321,2]
[368850175,1751376656448,-1000.0,0.00019321,2]
[368850178,1751376656457,-1000.0,0.00019321,2]
[368850180,1751376656467,-1000.0,0.00019321,2]
[368850181,1751376656476,-1000.89059915,0.00019321,2]
[368850183,1751376656486,-1000.0,0.00019321,2]
[368850186,1751376656496,-1000.0,0.00019321,2]
[368850188,1751376656506,-1000.0,0.00019321,2]
[368850190,1751376656516,-1000.0,0.00019321,2]
[368850192,1751376656527,-1000.0,0.00019321,2]
[368850194,1751376656536,-1000.0,0.00019321,2]
[368850196,1751376656546,-1000.0,0.00019321,2]
[368850198,1751376656555,-1000.0,0.00019321,2]
[368850200,1751376656564,-500.68314945,0.00019321,2]
[368850202,1751376656574,-545.89634889,0.00019321,2]
[368850204,1751376656584,-1000.0,0.00019321,2]
[368850206,1751376656593,-1000.0,0.00019321,2]
[368850208,1751376656603,-1000.0,0.00019321,2]
[368850210,1751376656612,-1000.0,0.00019321,2]
[368850212,1751376656621,-151.0,0.00019329,2]
[368850214,1751376656631,-151.0,0.00019329,2]
[368850216,1751376656640,-162.581365,0.00019329,2]
[368850218,1751376656650,-159.486442,0.00019329,2]
[368850220,1751376656660,-159.486442,0.00019329,2]
[368850222,1751376656669,-151.0,0.00019329,2]
[368850224,1751376656679,-100000.0,0.00019329,2]
[368850225,1751376656689,-5033.71506352,0.00019363,2]
[368850228,1751376656699,-151.0,0.00019368,2]
[368850230,1751376656708,-151.0,0.00019368,2]
[368850232,1751376656718,-151.0,0.00019368,2]
[368850234,1751376656728,-151.0,0.00019368,2]
[368850235,1751376656737,-151.0,0.00019368,2]
[368850237,1751376656747,-151.0,0.00019368,2]
[368850239,1751376656756,-281.925789,0.00019368,2]
[368850242,1751376656766,-281.925789,0.00019368,2]
[368850243,1751376656777,-151.0,0.00019368,2]
[368850246,1751376656792,-151.0,0.00019368,2]
[368850248,1751376656801,-151.0,0.00019368,2]
[368850249,1751376656811,-214.227078,0.00019368,2]
[368850251,1751376656821,-151.0,0.00019368,2]
[368850254,1751376656834,-151.0,0.00019368,2]
[368850256,1751376656844,-151.0,0.00019368,2]
[368850258,1751376656854,-297.882111,0.00019368,2]
[368850260,1751376656866,-297.882111,0.00019368,2]
[368850262,1751376656877,-151.0,0.00019368,2]
[368850264,1751376656886,-151.0,0.00019368,2]
[368850266,1751376656895,-151.0,0.00019368,2]
[368850268,1751376656905,-159.107509,0.00019368,2]
[368850270,1751376656915,-5000.0,0.00019368,2]
[368850272,1751376656924,-25000.0,0.00019368,2]
[368850274,1751376656934,-993.20877856,0.0001937,2]
[368850276,1751376656943,-500.0,0.00019373,2]
[368850278,1751376656953,-500.0,0.00019373,2]
[368850280,1751376656963,-160.07648927,0.00019373,2]
[368850282,1751376656973,-500.0,0.00019373,2]
[368850283,1751376656982,-382.28352178,0.00019373,2]
[368850286,1751376656993,-500.0,0.00019373,2]
[368850288,1751376657002,-160.07319559,0.00019373,2]
[368850289,1751376657011,-264.11884661,0.00019373,2]
[368850291,1751376657021,-500.0,0.00019373,2]
[368850294,1751376657032,-151.0,0.00019373,2]
[368850296,1751376657042,-234.647405,0.00019373,2]
[368850297,1751376657051,-1066.563368,0.00019373,2]
[368850300,1751376657060,-1066.563368,0.00019373,2]
[368850302,1751376657070,-1029.95750337,0.00019425,2]
[368850303,1751376657079,-572.436795,0.00019441,2]
[368850305,1751376657088,-460.0,0.00019461,2]
[368850308,1751376657098,-460.0,0.00019461,2]
[368850310,1751376657107,-524.13,0.00019461,2]
[368850312,1751376657116,-3650.08,0.00019461,2]
[368850314,1751376657126,-460.0,0.00019461,2]
[368850316,1751376657135,-787.8,0.00019461,2]
[368850318,1751376657144,-460.0,0.00019461,2]
[368850320,1751376657154,-460.0,0.00019461,2]